[Event "ESP chT Honor Division 2019"]
[Site "Melilla"]
[Date "2019.10.02"]
[Round "3.11"]
[White "Gines Esteo, Pedro Antonio"]
[Black "Gonzalez De La Torre, Santiago"]
[Result "1-0"]
[ECO "A06"]
[WhiteElo "2451"]
[BlackElo "2423"]
[Annotator "ChessBase"]
[PlyCount "73"]
[EventDate "2019.09.30"]
[EventType "team-tourn"]
[EventCountry "ESP"]
[SourceTitle "playchess.com"]
[Source "ChessBase"]
[SourceQuality "1"]
[TimeControl "40/5400+30:1800+30"]

1. Nf3 {[%emt 0:00:00]} d5 {[%emt 0:01:12]} 2. g3 {[%emt 0:00:00]} Nf6 {[%emt 0:00:05]} 3. Bg2 {[%emt 0:00:13]} e6 {[%emt 0:00:30]} 4. O-O {[%emt 0:00:21]} c5 {[%emt 0:02:21]} 5. d4 {[%emt 0:00:16]} Nc6 {[%emt 0:00:35]} 6. c4 {[%emt 0:00:08]} dxc4 {[%emt 0:00:08]} 7. Qa4 {[%emt 0:00:15]} Bd7 {[%emt 0:01:35]} 8. Qxc4 {[%emt 0:00:23]} b5 {[%emt 0:00:07]} 9. Qd3 {[%emt 0:06:43]} Rc8 {[%emt 0:00:45]} 10. dxc5 {[%emt 0:08:24]} Bxc5 {[%emt 0:01:26]} 11. Bg5 {[%emt 0:06:21]} Nb4 {[%emt 0:02:49]} 12. Qb3 Nc2 13. Nc3 {[%emt 0:00:38]} Nxa1 {[%emt 0:00:40]} 14. Rxa1 {[%emt 0:06:47]} h6 {[%emt 0:12:07]} 15. Bxf6 {[%emt 0:00:30]} Qxf6 {[%emt 0:00:30]} 16. Ne4 {[%emt 0:01:37]} Qe7 {[%emt 0:04:33]} 17. Ne5 {[%emt 0:05:18]} O-O {[%emt 0:09:38]} 18. Rd1 {[%emt 0:00:30]} Be8 {[%emt 0:12:32]} 19. Bf3 {[%emt 0:20:24]} Bb6 {[%emt 0:05:00]} 20. Kg2 {[%emt 0:00:30]} Rd8 {[%emt 0:00:30]} 21. Rc1 {[%emt 0:08:23]} Bd7 {[%emt 0:08:02]} 22. Qd3 {[%emt 0:03:02]} b4 {[%emt 0:03:55]} 23. b3 {[%emt 0:07:15]} Be8 24. Qc4 {[%emt 0:00:02]} Rd4 {[%emt 0:11:25]} 25. Qc2 {[%emt 0:04:11]} Bb5 {[%emt 0:06:07]} 26. Nd2 {[%emt 0:00:54]} Qg5 {[%emt 0:00:19]} 27. Ndc4 {[%emt 0:06:53]} Rc8 {[%emt 0:02:36]} 28. h4 {[%emt 0:02:14]} Qe7 29. e3 {[%emt 0:00:01]} Rdd8 {[%emt 0:01:10]} 30. Qe4 {[%emt 0:07:45]} Rd2 {[%emt 0:08:53]} 31. Qb1 {[%emt 0:00:30]} Rdd8 {[%emt 0:01:59]} 32. Qe4 {[%emt 0:00:00]} f6 33. Ng6 {[%emt 0:01:36]} Qe8 {[%emt 0:01:42]} 34. Nd6 {[%emt 0:00:06]} Rxc1 {[%emt 0:01:56]} 35. Nxe8 {[%emt 0:00:30]} Rxe8 {[%emt 0:01:28]} 36. Nf4 {[%emt 0:03:19]} e5 37. Qd5+ {[%emt 0:00:30]} 1-0

[Event "ESP chT Honor Division 2019"]
[Site "Melilla"]
[Date "2019.10.02"]
[Round "3.12"]
[White "Argandona Riveiro, Inigo"]
[Black "Osmak, Iulija"]
[Result "1-0"]
[ECO "C00"]
[WhiteElo "2413"]
[BlackElo "2409"]
[Annotator "NA"]
[PlyCount "101"]
[EventDate "2019.09.30"]
[EventType "team-tourn"]
[EventCountry "ESP"]
[SourceTitle "playchess.com"]
[Source "ChessBase"]
[SourceQuality "1"]
[TimeControl "40/5400+30:1800+30"]

1. e4 {[%emt 0:00:00]} e6 {[%emt 0:00:00]} 2. d3 {[%emt 0:00:00]} d5 {[%emt 0:00:00]} 3. Nd2 {[%emt 0:00:00]} Nf6 {[%emt 0:00:26]} 4. Ngf3 {[%emt 0:00:00]} g6 {[%emt 0:05:41]} 5. g3 {[%emt 0:00:00]} Bg7 {[%emt 0:00:03]} 6. Bg2 {[%emt 0:00:00]} O-O {[%emt 0:00:06]} 7. O-O {[%emt 0:00:00]} c5 {[%emt 0:00:04]} 8. Re1 {[%emt 0:00:00]} Nc6 {[%emt 0:00:17]} 9. c3 {[%emt 0:00:00]} a5 {[%emt 0:00:10]} 10. a4 {[%emt 0:00:00]} b6 {[%emt 0:00:17]} 11. Nb1 {[%emt 0:00:00]} Ra7 {[%emt 0:05:21]} 12. e5 {[%emt 0:06:47]} Nd7 {[%emt 0:01:47]} 13. Bf4 {[%emt 0:00:21]} h6 {[%emt 0:10:41]} 14. h4 {[%emt 0:01:35]} f6 {[%emt 0:00:14]} 15. exf6 {[%emt 0:07:03]} Qxf6 {[%emt 0:01:37]} 16. Qd2 {[%emt 0:00:37]} Kh7 {[%emt 0:00:26]} 17. Bd6 {[%emt 0:11:14]} Re8 {[%emt 0:08:58]} 18. Na3 {[%emt 0:00:13]} Ba6 {[%emt 0:04:42]} 19. Nb5 {[%emt 0:00:03]} Bxb5 {[%emt 0:16:04]} 20. axb5 {[%emt 0:00:04]} Nd8 {[%emt 0:00:08]} 21. Be5 {[%emt 0:17:14]} Nxe5 {[%emt 0:01:37]} 22. Nxe5 {[%emt 0:00:02]} Qf8 {[%emt 0:10:08]} 23. h5 {[%emt 0:14:21]} gxh5 {[%emt 0:05:54]} 24. Ra4 {[%emt 0:02:19]} Bf6 {[%emt 0:05:09]} 25. Rf4 {[%emt 0:05:46]} Qg7 {[%emt 0:00:20]} 26. Qe2 {[%emt 0:00:21]} Bxe5 {[%emt 0:04:29]} 27. Qxe5 {[%emt 0:00:08]} Qxe5 {[%emt 0:00:45]} 28. Rxe5 {[%emt 0:00:02]} Nf7 {[%emt 0:01:26]} 29. Re1 {[%emt 0:20:30]} Rae7 {[%emt 0:04:26]} 30. Bxd5 {[%emt 0:02:20]} exd5 {[%emt 0:03:37]} 31. Rxf7+ {[%emt 0:00:05]} Rxf7 {[%emt 0:00:02]} 32. Rxe8 {[%emt 0:00:06]} Rf3 {[%emt 0:00:54]} 33. Re3 {[%emt 0:00:13]} Rf5 {[%emt 0:07:38]} 34. Re6 {[%emt 0:04:10]} Rf3 {[%emt 0:00:17]} 35. Rxb6 {[%emt 0:01:26]} Rxd3 {[%emt 0:00:02]} 36. Rc6 {[%emt 0:01:03]} Rd2 {[%emt 0:01:39]} 37. Rxc5 {[%emt 0:02:38]} d4 {[%emt 0:01:40]} 38. b6 {[%emt 0:04:55]} dxc3 {[%emt 0:01:18]} 39. bxc3 {[%emt 0:00:10]} Rb2 {[%emt 0:00:03]} 40. Rxh5 {[%emt 0:02:03]} Rxb6 {[%emt 0:00:49]} 41. Rxa5 {[%emt 0:30:13]} Rc6 {[%emt 0:30:21]} 42. Ra3 {[%emt 0:00:03]} Kg6 {[%emt 0:00:24]} 43. Kf1 {[%emt 0:00:26]} Kf5 {[%emt 0:00:30]} 44. Ke2 {[%emt 0:00:21]} Re6+ {[%emt 0:00:59]} 45. Kd3 {[%emt 0:01:34]} Rd6+ {[%emt 0:00:11]} 46. Kc2 {[%emt 0:01:20]} Re6 {[%emt 0:00:17]} 47. Ra5+ {[%emt 0:00:00]} Kg6 {[%emt 0:00:00]} 48. Ra2 {[%emt 0:00:00]} Kf5 {[%emt 0:00:00]} 49. c4 {[%emt 0:00:00]} Ke4 {[%emt 0:00:00]} 50. Kc3 {[%emt 0:00:00]} Rf6 {[%emt 0:00:00]} 51. Rd2 {[%emt 0:00:00] Kd5} 1-0

[Event "ESP chT Honor Division 2019"]
[Site "Melilla"]
[Date "2019.10.02"]
[Round "3.14"]
[White "Ganguly, Surya Shekhar"]
[Black "Ponomariov, Ruslan"]
[Result "1/2-1/2"]
[ECO "B13"]
[WhiteElo "2658"]
[BlackElo "2675"]
[Annotator "ChessBase"]
[PlyCount "61"]
[EventDate "2019.09.30"]
[EventType "team-tourn"]
[EventCountry "ESP"]
[SourceTitle "playchess.com"]
[Source "ChessBase"]
[SourceQuality "1"]
[TimeControl "40/5400+30:1800+30"]

1. e4 {[%emt 0:00:00]} c6 {[%emt 0:00:00]} 2. d4 {[%emt 0:00:00]} d5 {[%emt 0:00:03]} 3. exd5 {[%emt 0:00:05]} cxd5 {[%emt 0:00:04]} 4. Bd3 {[%emt 0:00:09]} Nc6 {[%emt 0:00:54]} 5. c3 {[%emt 0:00:08]} Qc7 {[%emt 0:02:28]} 6. h3 {[%emt 0:00:44]} Nf6 {[%emt 0:08:38]} 7. Nf3 {[%emt 0:00:18]} g6 {[%emt 0:01:55]} 8. Qc2 {[%emt 0:00:50]} Bg7 {[%emt 0:03:20]} 9. O-O {[%emt 0:00:11]} O-O {[%emt 0:01:23]} 10. Re1 {[%emt 0:00:27]} Nh5 {[%emt 0:08:04]} 11. Be3 {[%emt 0:12:57]} Bd7 {[%emt 0:05:50]} 12. Na3 {[%emt 0:05:10]} a6 {[%emt 0:04:41]} 13. Qd2 {[%emt 0:02:14]} Rfe8 {[%emt 0:03:14]} 14. g4 {[%emt 0:06:05]} Nf6 {[%emt 0:00:43]} 15. Bf4 {[%emt 0:00:10]} Qb6 {[%emt 0:01:47]} 16. Ne5 {[%emt 0:01:27]} Rad8 {[%emt 0:00:41]} 17. f3 {[%emt 0:08:50]} Bc8 {[%emt 0:04:16]} 18. Qh2 {[%emt 0:05:23]} Be6 {[%emt 0:06:13]} 19. Re2 {[%emt 0:09:44]} Rc8 {[%emt 0:00:45]} 20. Be3 {[%emt 0:09:23]} Nd7 {[%emt 0:07:36]} 21. f4 {[%emt 0:01:12]} Ndxe5 {[%emt 0:02:41]} 22. fxe5 {[%emt 0:00:44]} f6 {[%emt 0:00:11]} 23. exf6 {[%emt 0:00:23]} exf6 {[%emt 0:00:04]} 24. Rae1 {[%emt 0:01:22]} Bf7 {[%emt 0:00:25]} 25. Kh1 {[%emt 0:08:08]} Re7 {[%emt 0:04:30]} 26. Bc1 {[%emt 0:02:56]} Rxe2 {[%emt 0:04:34]} 27. Rxe2 {[%emt 0:00:31]} Na5 {[%emt 0:01:24]} 28. Qg2 {[%emt 0:07:29]} Qd8 {[%emt 0:06:00]} 29. Re1 {[%emt 0:02:16]} Qd7 {[%emt 0:00:42]} 30. Bf4 {[%emt 0:01:30]} Bf8 {[%emt 0:02:15]} 31. Nc2 {[%emt 0:00:41]} 1/2-1/2

[Event "ESP chT Honor Division 2019"]
[Site "Melilla"]
[Date "2019.10.02"]
[Round "3.16"]
[White "Tejedor Fuente, Enrique"]
[Black "Mareco, Sandro"]
[Result "1/2-1/2"]
[ECO "A48"]
[WhiteElo "2453"]
[BlackElo "2634"]
[Annotator "ChessBase"]
[PlyCount "62"]
[EventDate "2019.09.30"]
[EventType "team-tourn"]
[EventCountry "ESP"]
[SourceTitle "playchess.com"]
[Source "ChessBase"]
[SourceQuality "1"]
[TimeControl "40/5400+30:1800+30"]

1. d4 {[%emt 0:00:00]} Nf6 {[%emt 0:00:00]} 2. Nf3 {[%emt 0:00:00]} g6 {[%emt 0:00:33]} 3. Bf4 {[%emt 0:02:03]} Bg7 {[%emt 0:00:02]} 4. e3 {[%emt 0:00:22]} d6 {[%emt 0:00:06]} 5. h3 {[%emt 0:00:04]} O-O {[%emt 0:00:06]} 6. Be2 {[%emt 0:04:06]} b6 {[%emt 0:00:12]} 7. O-O {[%emt 0:00:29]} Bb7 {[%emt 0:00:03]} 8. a4 {[%emt 0:05:13]} a5 {[%emt 0:02:34]} 9. Bh2 {[%emt 0:00:38]} Nbd7 {[%emt 0:00:43]} 10. Na3 {[%emt 0:03:41]} Ne4 {[%emt 0:00:34]} 11. c3 {[%emt 0:07:20]} e5 {[%emt 0:00:09]} 12. Bb5 {[%emt 0:08:10]} Ng5 {[%emt 0:21:33]} 13. Nxg5 {[%emt 0:05:51]} Qxg5 {[%emt 0:00:04]} 14. Qg4 {[%emt 0:00:17]} Qxg4 {[%emt 0:00:36]} 15. hxg4 {[%emt 0:00:02]} c6 {[%emt 0:01:21]} 16. Be2 {[%emt 0:00:42]} d5 {[%emt 0:00:16]} 17. Rfd1 {[%emt 0:04:56]} Rfe8 {[%emt 0:01:16]} 18. Rac1 {[%emt 0:07:23]} h6 {[%emt 0:09:06]} 19. Kf1 {[%emt 0:00:56]} Rac8 {[%emt 0:06:01]} 20. b3 {[%emt 0:19:20]} exd4 {[%emt 0:03:34]} 21. cxd4 {[%emt 0:04:16]} Nb8 {[%emt 0:00:18]} 22. Nc2 {[%emt 0:01:56]} Na6 {[%emt 0:01:18]} 23. Ne1 {[%emt 0:03:48]} Nb4 {[%emt 0:00:28]} 24. Nd3 {[%emt 0:00:10]} Bf8 {[%emt 0:02:13]} 25. Bf4 {[%emt 0:02:52]} Kg7 {[%emt 0:05:15]} 26. Kg1 {[%emt 0:04:14]} Ba6 {[%emt 0:06:08]} 27. Kf1 {[%emt 0:03:05]} Re6 {[%emt 0:06:52]} 28. Ne1 {[%emt 0:03:33]} Bxe2+ {[%emt 0:00:43]} 29. Kxe2 {[%emt 0:00:01]} Na2 {[%emt 0:04:55]} 30. Rc2 {[%emt 0:00:12]} Nb4 {[%emt 0:00:04]} 31. Rcc1 {[%emt 0:01:27]} Na2 {[%emt 0:05:15]} 1/2-1/2

[Event "ESP chT Honor Division 2019"]
[Site "Melilla"]
[Date "2019.10.02"]
[Round "3.17"]
[White "Ibarra Jerez, Jose Carlos"]
[Black "Ubilava, Elizbar"]
[Result "1-0"]
[ECO "C44"]
[WhiteElo "2538"]
[BlackElo "2481"]
[Annotator "ChessBase"]
[PlyCount "77"]
[EventDate "2019.09.30"]
[EventType "team-tourn"]
[EventCountry "ESP"]
[SourceTitle "playchess.com"]
[Source "ChessBase"]
[SourceQuality "1"]
[TimeControl "40/5400+30:1800+30"]

1. e4 {[%emt 0:00:00]} e5 {[%emt 0:00:00]} 2. Nf3 {[%emt 0:00:06]} Nc6 {[%emt 0:00:00]} 3. d4 {[%emt 0:00:32]} exd4 {[%emt 0:01:50]} 4. Nxd4 {[%emt 0:00:24]} g6 {[%emt 0:05:35]} 5. Nc3 {[%emt 0:01:49]} Bg7 {[%emt 0:00:15]} 6. Be3 {[%emt 0:00:40]} Nge7 {[%emt 0:01:02]} 7. Qd2 {[%emt 0:06:27]} d6 {[%emt 0:14:01]} 8. O-O-O {[%emt 0:03:40]} Be6 {[%emt 0:03:38]} 9. f4 {[%emt 0:14:38]} Qd7 {[%emt 0:02:07]} 10. g3 {[%emt 0:04:51]} O-O {[%emt 0:04:55]} 11. Bg2 {[%emt 0:12:32]} Bh3 {[%emt 0:05:06]} 12. Bxh3 {[%emt 0:11:10]} Qxh3 {[%emt 0:00:13]} 13. Rhf1 {[%emt 0:01:14]} Rfe8 {[%emt 0:08:51]} 14. Kb1 {[%emt 0:06:03]} Nc8 {[%emt 0:27:32]} 15. Ndb5 {[%emt 0:19:05]} Qd7 {[%emt 0:02:20]} 16. Nd5 {[%emt 0:00:16]} Rxe4 {[%emt 0:00:31]} 17. Nbxc7 {[%emt 0:00:07]} Rb8 {[%emt 0:00:40]} 18. f5 {[%emt 0:00:23]} N8e7 {[%emt 0:06:27]} 19. fxg6 {[%emt 0:06:22]} hxg6 {[%emt 0:01:09]} 20. Bh6 {[%emt 0:00:41]} Bh8 {[%emt 0:06:00]} 21. Bg5 {[%emt 0:01:15]} Nxd5 {[%emt 0:02:02]} 22. Nxd5 {[%emt 0:00:11]} Rd4 {[%emt 0:00:52]} 23. Qc1 {[%emt 0:00:47]} Rxd1 {[%emt 0:00:32]} 24. Qxd1 {[%emt 0:00:18]} Re8 {[%emt 0:00:25]} 25. Bf6 {[%emt 0:01:02]} Re6 {[%emt 0:00:10]} 26. Qd2 {[%emt 0:01:01]} Bg7 {[%emt 0:00:27]} 27. b3 {[%emt 0:03:32]} Ne5 {[%emt 0:00:30]} 28. h4 {[%emt 0:01:14]} Qb5 {[%emt 0:02:04]} 29. Rf4 {[%emt 0:00:19]} Qc5 {[%emt 0:01:15]} 30. Bxg7 {[%emt 0:00:47]} Kxg7 {[%emt 0:00:16]} 31. Kb2 {[%emt 0:00:25]} a6 {[%emt 0:01:06]} 32. g4 {[%emt 0:00:24]} Qc8 {[%emt 0:02:00]} 33. h5 {[%emt 0:00:33]} Qd8 {[%emt 0:00:32]} 34. hxg6 {[%emt 0:00:31]} Nxg6 {[%emt 0:00:08]} 35. Qd4+ {[%emt 0:00:27]} Ne5 {[%emt 0:00:19]} 36. Rf5 {[%emt 0:00:40]} Kg8 {[%emt 0:00:32]} 37. Nf4 {[%emt 0:00:18]} Rf6 {[%emt 0:00:29]} 38. Rg5+ {[%emt 0:01:25]} Ng6 {[%emt 0:01:07]} 39. Nh5 {[%emt 0:00:08]} 1-0

[Event "ESP chT Honor Division 2019"]
[Site "Melilla"]
[Date "2019.10.02"]
[Round "3.18"]
[White "Arabidze, Meri"]
[Black "Vega Gutierrez, Sabrina"]
[Result "1/2-1/2"]
[ECO "D45"]
[WhiteElo "2398"]
[BlackElo "2395"]
[Annotator "NA"]
[PlyCount "79"]
[EventDate "2019.09.30"]
[EventType "team-tourn"]
[EventCountry "ESP"]
[SourceTitle "playchess.com"]
[Source "ChessBase"]
[SourceQuality "1"]
[TimeControl "40/5400+30:1800+30"]

1. d4 {[%emt 0:00:00]} d5 {[%emt 0:00:00]} 2. c4 {[%emt 0:00:10]} e6 {[%emt 0:00:00]} 3. Nc3 {[%emt 0:00:25]} c6 {[%emt 0:00:00]} 4. e3 {[%emt 0:00:30]} Nf6 {[%emt 0:00:12]} 5. Nf3 {[%emt 0:00:38]} Nbd7 {[%emt 0:00:12]} 6. Qc2 {[%emt 0:01:10]} Bd6 {[%emt 0:00:17]} 7. Be2 {[%emt 0:00:39]} O-O {[%emt 0:01:20]} 8. O-O {[%emt 0:00:37]} dxc4 {[%emt 0:03:55]} 9. a4 {[%emt 0:00:18]} e5 {[%emt 0:00:59]} 10. Bxc4 {[%emt 0:00:42]} Qe7 {[%emt 0:01:03]} 11. h3 {[%emt 0:06:41]} e4 {[%emt 0:31:17]} 12. Ng5 {[%emt 0:13:08]} Nb6 {[%emt 0:00:10]} 13. Bb3 {[%emt 0:04:59]} Nbd5 {[%emt 0:03:16]} 14. Ncxe4 {[%emt 0:11:54]} Nxe4 {[%emt 0:00:43]} 15. Nxe4 {[%emt 0:00:06]} Nb4 {[%emt 0:01:52]} 16. Qb1 {[%emt 0:00:14]} Bf5 {[%emt 0:00:12]} 17. f3 {[%emt 0:00:16]} Rae8 {[%emt 0:07:04]} 18. Bd2 {[%emt 0:00:41]} Bxe4 {[%emt 0:06:14]} 19. fxe4 {[%emt 0:00:40]} Qxe4 {[%emt 0:00:36]} 20. Qxe4 {[%emt 0:01:38]} Rxe4 {[%emt 0:00:09]} 21. Rf5 {[%emt 0:00:57]} g6 {[%emt 0:19:41]} 22. Rf6 {[%emt 0:09:07]} Be7 {[%emt 0:00:15]} 23. Rf3 {[%emt 0:00:20]} Kg7 {[%emt 0:01:37]} 24. a5 {[%emt 0:09:59]} f5 {[%emt 0:03:52]} 25. a6 {[%emt 0:04:06]} bxa6 {[%emt 0:01:15]} 26. Bc3 {[%emt 0:10:52]} Kh6 {[%emt 0:03:51]} 27. Bc4 {[%emt 0:00:52]} Rb8 {[%emt 0:01:15]} 28. Ra4 {[%emt 0:04:17]} Rb6 {[%emt 0:03:54]} 29. Kf2 {[%emt 0:01:37]} Nd5 {[%emt 0:02:41]} 30. Bxd5 {[%emt 0:03:48]} cxd5 {[%emt 0:00:02]} 31. Ra5 {[%emt 0:06:14]} Bb4 {[%emt 0:01:40]} 32. Rxd5 {[%emt 0:00:07]} Bxc3 {[%emt 0:00:05]} 33. bxc3 {[%emt 0:00:04]} Rc6 {[%emt 0:01:57]} 34. Ra5 {[%emt 0:00:52]} Rxc3 {[%emt 0:00:29]} 35. Rxa6 {[%emt 0:00:19]} Rc2+ {[%emt 0:03:32]} 36. Kg1 {[%emt 0:01:32]} Rc1+ {[%emt 0:00:29]} 37. Kh2 {[%emt 0:00:59]} Rc3 {[%emt 0:01:28]} 38. Rxa7 {[%emt 0:00:55]} Rcxe3 {[%emt 0:00:22]} 39. Rxe3 {[%emt 0:00:35]} Rxe3 {[%emt 0:00:03]} 40. Rd7 {[%emt 0:00:20]} 1/2-1/2

[Event "ESP chT Honor Division 2019"]
[Site "Melilla"]
[Date "2019.10.02"]
[Round "3.19"]
[White "Cheparinov, Ivan"]
[Black "Iturrizaga Bonelli, Eduardo"]
[Result "1-0"]
[ECO "E15"]
[WhiteElo "2670"]
[BlackElo "2629"]
[Annotator "ChessBase"]
[PlyCount "117"]
[EventDate "2019.09.30"]
[EventType "team-tourn"]
[EventCountry "ESP"]
[SourceTitle "playchess.com"]
[Source "ChessBase"]
[SourceQuality "1"]
[TimeControl "40/5400+30:1800+30"]

1. d4 {[%emt 0:00:00]} Nf6 {[%emt 0:00:00]} 2. c4 {[%emt 0:00:00]} e6 {[%emt 0:00:00]} 3. Nf3 {[%emt 0:00:00]} b6 {[%emt 0:00:38]} 4. g3 {[%emt 0:00:00]} Ba6 {[%emt 0:00:40]} 5. b3 {[%emt 0:00:00]} Bb4+ {[%emt 0:00:32]} 6. Bd2 {[%emt 0:00:00]} Be7 {[%emt 0:00:04]} 7. Bg2 O-O {[%emt 0:00:07]} 8. Nc3 {[%emt 0:00:08]} d5 {[%emt 0:00:28]} 9. cxd5 {[%emt 0:00:08]} exd5 {[%emt 0:00:05]} 10. O-O {[%emt 0:00:05]} Re8 {[%emt 0:00:56]} 11. Ne5 {[%emt 0:00:48]} Bb7 {[%emt 0:01:16]} 12. Bc1 {[%emt 0:00:07]} Nbd7 {[%emt 0:01:04]} 13. Bb2 {[%emt 0:00:09]} Bd6 14. f4 c5 {[%emt 0:24:10]} 15. e3 {[%emt 0:02:35]} cxd4 {[%emt 0:00:09]} 16. exd4 a6 {[%emt 0:00:10]} 17. g4 {[%emt 0:17:54]} b5 {[%emt 0:00:40]} 18. g5 Ne4 {[%emt 0:36:52]} 19. Nxe4 {[%emt 0:01:06]} dxe4 {[%emt 0:00:05]} 20. Qg4 {[%emt 0:04:40]} Re7 {[%emt 0:15:58]} 21. Rae1 {[%emt 0:08:00]} f6 {[%emt 0:05:25]} 22. Nxd7 {[%emt 0:14:24]} Qxd7 {[%emt 0:00:13]} 23. Qxd7 {[%emt 0:01:51]} Rxd7 {[%emt 0:00:06]} 24. Bxe4 {[%emt 0:03:03]} Bxe4 {[%emt 0:05:59]} 25. Rxe4 {[%emt 0:00:01]} f5 {[%emt 0:01:29]} 26. Re2 {[%emt 0:00:07]} Kf7 {[%emt 0:02:53]} 27. Kg2 {[%emt 0:00:50]} Rh8 {[%emt 0:01:08]} 28. h3 {[%emt 0:12:27]} h6 {[%emt 0:00:36]} 29. d5 {[%emt 0:04:25]} Bb8 {[%emt 0:01:53]} 30. gxh6 {[%emt 0:01:23]} Rxh6 {[%emt 0:00:07]} 31. Be5 {[%emt 0:00:05]} Bxe5 {[%emt 0:01:11]} 32. Rxe5 {[%emt 0:00:31]} g6 {[%emt 0:00:34]} 33. Rc1 {[%emt 0:00:56]} Rh8 {[%emt 0:00:27]} 34. Rc6 {[%emt 0:11:39]} Rhd8 {[%emt 0:00:08]} 35. Ree6 {[%emt 0:01:11]} Rxd5 {[%emt 0:00:08]} 36. Rf6+ {[%emt 0:00:04]} Ke7 {[%emt 0:01:08]} 37. Rce6+ {[%emt 0:01:41]} Kd7 {[%emt 0:00:05]} 38. Rxa6 {[%emt 0:02:45]} Rd2+ {[%emt 0:00:06]} 39. Kg3 {[%emt 0:00:44]} Rd3+ {[%emt 0:00:05]} 40. Kf2 {[%emt 0:00:03]} Kc7 {[%emt 0:01:14]} 41. Rf7+ {[%emt 0:35:24]} Kb8 {[%emt 0:30:12]} 42. Rxg6 {[%emt 0:01:01]} Rxh3 {[%emt 0:00:38]} 43. Rxf5 {[%emt 0:07:12]} b4 {[%emt 0:00:05]} 44. Rf7 {[%emt 0:04:01]} Rc8 {[%emt 0:00:00]} 45. Rgg7 Rc2+ {[%emt 0:00:00]} 46. Kg1 {[%emt 0:00:00]} Rh8 {[%emt 0:00:00]} 47. Rb7+ Ka8 48. Ra7+ {[%emt 0:00:00]} Kb8 {[%emt 0:00:00]} 49. Rgb7+ {[%emt 0:00:00]} Kc8 {[%emt 0:00:00]} 50. Rxb4 Rh3 51. Rc4+ {[%emt 0:00:00]} Rxc4 {[%emt 0:00:00]} 52. bxc4 {[%emt 0:00:00]} Rf3 {[%emt 0:00:00]} 53. Rf7 {[%emt 0:00:00]} Rc3 {[%emt 0:00:00]} 54. Kf2 Rxc4 {[%emt 0:00:00]} 55. Kf3 {[%emt 0:00:00]} Ra4 {[%emt 0:00:00]} 56. Re7 {[%emt 0:00:00]} Rxa2 {[%emt 0:00:00]} 57. Kg4 Kd8 {[%emt 0:00:00]} 58. Re1 {[%emt 0:00:00]} Rg2+ 59. Kh5 {[%emt 0:00:00]} 1-0

[Event "ESP chT Honor Division 2019"]
[Site "Melilla"]
[Date "2019.10.02"]
[Round "3.20"]
[White "Vazquez Igarza, Renier"]
[Black "Predke, Alexandr"]
[Result "0-1"]
[ECO "E04"]
[WhiteElo "2557"]
[BlackElo "2657"]
[Annotator "ChessBase"]
[PlyCount "104"]
[EventDate "2019.09.30"]
[EventType "team-tourn"]
[EventCountry "ESP"]
[SourceTitle "playchess.com"]
[Source "ChessBase"]
[SourceQuality "1"]
[TimeControl "40/5400+30:1800+30"]

1. Nf3 {[%emt 0:00:00]} d5 {[%emt 0:01:20]} 2. d4 {[%emt 0:00:36]} Nf6 {[%emt 0:00:07]} 3. c4 {[%emt 0:00:16]} e6 {[%emt 0:00:05]} 4. g3 {[%emt 0:02:09]} dxc4 {[%emt 0:00:06]} 5. Bg2 {[%emt 0:03:05]} Bb4+ {[%emt 0:00:09]} 6. Bd2 {[%emt 0:00:47]} a5 {[%emt 0:00:06]} 7. Qc2 {[%emt 0:03:12]} c5 {[%emt 0:00:28]} 8. dxc5 {[%emt 0:03:55]} Bxc5 {[%emt 0:00:19]} 9. Qxc4 {[%emt 0:01:22]} Nbd7 {[%emt 0:01:40]} 10. Nc3 {[%emt 0:07:28]} b6 {[%emt 0:00:44]} 11. O-O {[%emt 0:02:12]} O-O {[%emt 0:00:41]} 12. Qb3 {[%emt 0:02:19]} Bb7 {[%emt 0:01:15]} 13. Rfd1 {[%emt 0:02:15]} Qe7 {[%emt 0:03:52]} 14. Be1 {[%emt 0:01:43]} Rac8 {[%emt 0:03:47]} 15. Rac1 {[%emt 0:03:45]} Bb4 {[%emt 0:06:06]} 16. a3 {[%emt 0:04:10]} Nc5 {[%emt 0:02:34]} 17. Qa2 {[%emt 0:10:13]} Bxc3 {[%emt 0:00:43]} 18. bxc3 {[%emt 0:02:09]} Rfd8 {[%emt 0:14:42]} 19. c4 {[%emt 0:02:47]} Rxd1 {[%emt 0:01:22]} 20. Rxd1 {[%emt 0:00:09]} Ncd7 {[%emt 0:00:10]} 21. Bc3 {[%emt 0:03:59]} h6 {[%emt 0:08:47]} 22. Bf1 {[%emt 0:03:16]} Ne4 {[%emt 0:10:01]} 23. Ba1 {[%emt 0:04:56]} Ba6 {[%emt 0:00:12]} 24. Qb1 {[%emt 0:07:18]} f5 {[%emt 0:04:21]} 25. Qd3 {[%emt 0:09:27]} Rxc4 {[%emt 0:12:23]} 26. Qxd7 {[%emt 0:02:58]} Qxd7 {[%emt 0:00:07]} 27. Rxd7 {[%emt 0:00:05]} Rc1 {[%emt 0:00:02]} 28. Bb2 {[%emt 0:07:19]} Rb1 {[%emt 0:00:03]} 29. Rxg7+ {[%emt 0:02:24]} Kf8 {[%emt 0:00:12]} 30. Rc7 {[%emt 0:02:37]} Rxb2 {[%emt 0:02:40]} 31. Nd4 {[%emt 0:01:23]} Rb1 {[%emt 0:02:00]} 32. Nxe6+ {[%emt 0:00:27]} Kg8 {[%emt 0:00:02]} 33. Rc2 {[%emt 0:01:07]} Rd1 {[%emt 0:00:09]} 34. Kg2 {[%emt 0:03:16]} Nd2 {[%emt 0:00:46]} 35. Nd4 {[%emt 0:01:05]} Nxf1 {[%emt 0:06:07]} 36. Nxf5 {[%emt 0:00:02]} h5 {[%emt 0:00:03]} 37. Kh3 {[%emt 0:01:32]} Rd2 {[%emt 0:01:04]} 38. Rc6 {[%emt 0:00:03]} Bxe2 {[%emt 0:04:03]} 39. Kh4 {[%emt 0:00:01]} b5 {[%emt 0:03:28]} 40. Kg5 {[%emt 0:00:11]} Kf7 {[%emt 0:00:10]} 41. h3 {[%emt 0:06:26]} Ke8 {[%emt 0:03:09]} 42. Rc7 {[%emt 0:07:05]} Kd8 {[%emt 0:01:30]} 43. Ra7 {[%emt 0:00:09]} a4 {[%emt 0:00:37]} 44. f4 {[%emt 0:04:21]} Rd3 {[%emt 0:02:59]} 45. g4 {[%emt 0:01:32]} hxg4 {[%emt 0:02:20]} 46. hxg4 {[%emt 0:00:08]} Ne3 {[%emt 0:05:35]} 47. Ne7 {[%emt 0:03:16]} Bf3 {[%emt 0:02:15]} 48. Kf6 {[%emt 0:03:09]} Rd7 {[%emt 0:01:09]} 49. Rxd7+ {[%emt 0:02:20]} Kxd7 {[%emt 0:00:03]} 50. g5 {[%emt 0:00:10]} b4 {[%emt 0:00:18]} 51. g6 {[%emt 0:01:28]} bxa3 {[%emt 0:00:38]} 52. g7 {[%emt 0:00:07]} Nd5+ {[%emt 0:00:09]} 0-1